Cogmind - Beta 11 @@@ ROGUE MODE // 2022.03.27 @ 08:53:29 Player: erp.lsf Result: Destroyed by G-34 Mercenary with Small Laser Performance ------------- Evolutions (0) 0 Regions Visited (1) 200 Robots Destroyed (21) 105 Value Destroyed (465) 465 Prototype IDs (0) 0 Alien Tech Used (0) 0 Bonus (0) 0 TOTAL SCORE: 770 Bonus ------- None Cogmind --------- Core Integrity 0/250 Matter 162/300 Energy 250/250 System Corruption 5% Temperature Cool (7) Movement Hovering (120) Ox1 Location -10/Materials Parts ------- > --- POWER (1) -------- Ion Engine > --- PROPULSION (2) --- Hover Unit > --- UTILITY (2) ------ Improved Targeting Computer Improved Targeting Computer > --- WEAPON (2) ------- Light Cannon > --- INVENTORY (5) ---- Aluminum Leg Aluminum Leg Large Storage Unit Datajack Mining Laser Peak State ------------ > --- POWER ------------ Ion Engine > --- PROPULSION ------- Hover Unit > --- UTILITY ---------- Visual Processing Unit Improved Targeting Computer > --- WEAPON ----------- Light Cannon Light Cannon > --- INVENTORY -------- Aluminum Leg Aluminum Leg Large Storage Unit Datajack Mining Laser [Rating: 8] Favorites ----------- Power Light Ion Engine Engine Light Ion Engine Propulsion Compact Wheel Leg Aluminum Leg Wheel Compact Wheel Hover Unit Hover Unit Utility Targeting Computer Device Structural Scanner Storage Large Storage Unit Processor Targeting Computer Weapon Light Cannon Energy Gun EM Pulse Gun Ballistic Cannon Light Cannon Special Melee Weapon Datajack Build | -11 -10 ------- Run | Scr Mat Slots Evolved . | . . Power . | . . Propulsion . | . . Utility . | . . Weapon . | . . Parts Attached 24 | 5 19 Power 2 | 1 1 Engine 2 | 1 1 Core . | . . Reactor . | . . Propulsion 7 | 2 5 Treads . | . . Leg 2 | . 2 Wheel 2 | 2 . Hover 3 | . 3 Flight . | . . Utility 8 | . 8 Device 3 | . 3 Storage 1 | . 1 Processor 4 | . 4 Hackware . | . . Protection . | . . Artifact . | . . Weapon 7 | 2 5 Energy Gun 2 | 2 . Energy Cannon . | . . Ballistic Gun . | . . Ballistic Cannon 4 | . 4 Launcher . | . . Special Weapon . | . . Impact Weapon . | . . Slashing Weapon . | . . Piercing Weapon . | . . Special Melee Weapon 1 | . 1 Unidentified Prototypes . | . . Parts Lost 7 | . 7 Power 1 | . 1 Propulsion 2 | . 2 Utility 1 | . 1 Weapon 3 | . 3 Highest Loss Streak 5 | . 5 To Critical Strikes . | . . Average Slot Usage (%) 86 | . 86 Engine 13 | . 13 Leg 2 | . 2 Wheel 14 | . 14 Hover 5 | . 5 Device 10 | . 10 Processor 12 | . 12 Energy Gun 13 | . 13 Ballistic Cannon 12 | . 12 Naked Turns . | . . Heaviest Build 31 | 6 31 Greatest Support 32 | 32 32 Greatest Overweight (x) 5 | . 5 Average Overweight (x) . | . . Largest Inventory Capacity 15 | 5 15 Average Capacity 5 | 5 5 Most Carried 5 | . 5 Average Carried 2 | . 2 Final Capacity 5 | 5 5 Final Carried 5 | . 5 Class Distribution -------------------- 100% | Mutant Dominant Class ---------------- Mutant | -10/Materials Resources | -11 -10 ----------- Run | Scr Mat Matter Collected 529 | 205 324 Remotely . | . . Salvage Created 655 | . 655 Parts 40 | . 40 Haulers Intercepted 1 | . 1 Recyclers Shooed . | . . Parts Field Recycled . | . . Retrieved Matter . | . . Parts Self-Destructed . | . . Prevented . | . . Kills | -11 -10 ------- Run | Scr Mat Combat Hostiles Destroyed 13 | . 13 Guns 4 | . 4 Cannons 8 | . 8 AOE 1 | . 1 Classes Destroyed 9 | . 9 Worker 1 | . 1 Builder 1 | . 1 Tunneler 1 | . 1 Hauler 1 | . 1 Recycler 1 | . 1 Operator 1 | . 1 Watcher 2 | . 2 Swarmer 3 | . 3 Grunt 10 | . 10 Best Kill Streak 8 | . 8 Combat Bots Only 4 | . 4 Max Kills in Single Turn 2 | . 2 Gunslinging 1 | . 1 Exploded 1 | . 1 Melee . | . . Uniques/NPCs Destroyed . | . . Combat | -11 -10 -------- Run | Scr Mat Damage Taken 705 | . 705 Core 255 | . 255 Absorbed by Shields . | . . Regen/Repaired (Parts) 28 | . 28 Core Remaining (%) 100 | 100 . Volleys Fired 60 | . 60 Largest 2 | . 2 Hottest 80 | . 80 Shots Fired 109 | . 109 Gun 53 | . 53 Cannon 56 | . 56 Launcher . | . . Special . | . . Kinetic 56 | . 56 Thermal 26 | . 26 Explosive . | . . Electromagnetic 27 | . 27 Robot Hit Streak 9 | . 9 Robot Miss Streak 3 | . 3 Penetration Max . | . . Secondary Targets 1 | . 1 Max Gunslinging Chain 1 | . 1 Shots Hit Robots 75 | . 75 Core Hits 28 | . 28 Critical Kills . | . . Critical Parts Destroyed . | . . Critical Strikes 2 | . 2 Blast 2 | . 2 Melee Attacks 2 | . 2 Impact . | . . Slashing . | . . Piercing . | . . Sneak Attacks 1 | . 1 Combat Hostiles . | . . Follow-up Attacks . | . . Damage Inflicted 1336 | . 1336 Guns 400 | . 400 Cannons 731 | . 731 Explosions 199 | . 199 Melee . | . . Ramming 6 | . 6 Kinetic 731 | . 731 Thermal 371 | . 371 Explosive . | . . Electromagnetic 228 | . 228 Impact . | . . Slashing . | . . Piercing . | . . Highest Corruption 5 | . 5 Average Corruption 5 | . 5 Corruption Purged . | . . Corruption Blocked . | . . Effects 12 | . 12 Message Errors 3 | . 3 Matter Fused 3 | . 3 Heat Flow Errors 2 | . 2 Energy Discharges 1 | . 1 Parts Rejected 1 | . 1 Data Loss (minor) 2 | . 2 Overload Shots . | . . Overflow Damage 51 | . 51 Projectiles 3 | . 3 Explosions 48 | . 48 Melee . | . . Knockbacks 18 | . 18 Impact . | . . Kinetic 15 | . 15 Secondary 3 | . 3 Self-Inflicted Damage 94 | . 94 Shots 2 | . 2 Rammed 1 | . 1 Targets Rammed 1 | . 1 Kicked . | . . Crushed . | . . Highest Temperature 272 | . 272 Average Temperature 75 | . 75 Received Heat Transfer 321 | . 321 Effects 3 | . 3 Interference 3 | . 3 Siege Activations . | . . Robots Corrupted . | . . Combat Hostiles . | . . Parts Fried 1 | . 1 Impact Corruptions . | . . Robots Melted . | . . Combat Hostiles . | . . Parts Melted . | . . Heat Transferred 600 | . 600 Parts Sabotaged . | . . Parts Stolen . | . . Parts Stripped . | . . Power Chain Reactions 2 | . 2 Missiles Intercepted . | . . Alert | -11 -10 ------- Run | Scr Mat Peak Influence 169 | . 169 Initial . | . . Average 71 | . 74 Maximum Alert Level . | . . Low Security (%) 100 | 100 100 Level 1 . | . . Level 2 . | . . Level 3 . | . . Level 4 . | . . Level 5 . | . . High Security . | . . Max Security . | . . Squads Dispatched 4 | . 4 Investigation 3 | . 3 Extermination . | . . Reinforcement 1 | . 1 Assault . | . . Garrison . | . . Intercept . | . . Searches Triggered . | . . Construction Impeded . | . . Haulers Reinforced . | . . Active Scanning Responses . | . . Cargo Convoy Interrupts . | . . Stealth | -11 -10 --------- Run | Scr Mat Distress Signals 1 | . 1 Communications Jammed . | . . Distress Signals . | . . Times Spotted 31 | . 31 Peak Tracking Total 6 | . 6 Tactical Retreats . | . . Traps | -11 -10 ------- Run | Scr Mat Traps Triggered 2 | . 2 Indirectly . | . . Trap Hack Attempts . | . . Triggered . | . . Disarmed . | . . Reprogrammed . | . . Reused . | . . Traps Extracted . | . . Installed . | . . Triggered . | . . Machines | -11 -10 ---------- Run | Scr Mat Machines Disabled 2 | . 2 Max in Single Turn 1 | . 1 Machines Sabotaged . | . . Garrisons Compromised . | . . Overloaded Fab Kills . | . . Hacking | -11 -10 --------- Run | Scr Mat Machines Accessed 5 | . 5 Terminals 3 | . 3 Fabricators . | . . Repair Stations 1 | . 1 Recycling Units 1 | . 1 Scanalyzers . | . . Garrison Access . | . . Total Hacks 11 | . 11 Successful 7 | . 7 Failed 4 | . 4 Catastrophic . | . . Database Lockouts . | . . Manual 5 | . 5 Terminals 7 | . 7 Fabricators . | . . Repair Stations 2 | . 2 Recycling Units 2 | . 2 Scanalyzers . | . . Garrison Access . | . . Terminal Hacks 1 | . 1 Branch Access Points 1 | . 1 Fabricator Hacks . | . . Repair Station Hacks 2 | . 2 Scan Component 1 | . 1 Repair 1 | . 1 Recycling Unit Hacks 1 | . 1 Report Inventory 1 | . 1 Scanalyzer . | . . Garrison Access Hacks . | . . Unauthorized Hacks 3 | . 3 Terminals 3 | . 3 Botnet 3 | . 3 Fabricators . | . . Repair Stations . | . . Recycling Units . | . . Scanalyzers . | . . Garrison Access . | . . Data Cores Recovered . | . . Used . | . . Hacking Detections 1 | . 1 Full Trace Events . | . . Feedback Events . | . . Feedback Blocked . | . . Robot Schematics Acquired . | . . Robots Built . | . . Authchips . | . . Time . | . . Total Robot Build Rating . | . . Part Schematics Acquired . | . . Parts Built . | . . Authchips . | . . Time . | . . Total Part Build Rating . | . . Parts Repaired 1 | . 1 Time 26 | . 26 Parts Recycled . | . . Recycled Matter . | . . Retrieved Matter . | . . Retrieved Components . | . . Parts Scanalyzed . | . . Part Schematics Acquired . | . . Parts Damaged . | . . Bothacking | -11 -10 ------------ Run | Scr Mat Used RIF Installer . | . . Robots Hacked 1 | . 1 Non-combat 1 | . 1 Combat . | . . Robot Hacks Applied 1 | . 1 parse_system 1 | . 1 Relay Couplers Released . | . . Fabnet Peak Effective % . | . . Robots Rewired . | . . Allies Hacked . | . . Hacks Repelled . | . . Allies | -11 -10 -------- Run | Scr Mat Total Allies . | . . Largest Group . | . . Highest-Rated Group . | . . Highest-Rated Ally . | . . Total Orders . | . . Ally Attacks . | . . Total Damage . | . . Kills . | . . Allies Corrupted . | . . Allies Melted . | . . Intel | -11 -10 ------- Run | Scr Mat Robot Analysis Total . | . . Derelict Logs Recovered . | . . Drone Launches . | . . Drone Recoveries . | . . Exploration | -11 -10 ------------- Run | Scr Mat Turns Passed 1042 | 37 1005 Spaces Moved 554 | 30 524 Core 16 | 1 15 Treads . | . . Legs 2 | . 2 Wheels 313 | 29 284 Hover 223 | . 223 Flight . | . . Fastest Speed 50 | 50 100 Average Speed 114 | 98 114 Slowest Speed 360 | 100 360 Overloaded Moves . | . . Propulsion Burnouts . | . . Robots Hopped . | . . Cave-ins Triggered . | . . Exploration Rate (%) 36 | 3 69 Regions Visited 1 Branch Regions . Pre-discovered Areas . | . . Known Exits Taken . | . . Unknown Exits Taken 1 | 1 . Scrap Searched . | . . Spaces Dug . | . . Terrain Destroyed 10 | . 10 Melee . | . . Projectile . | . . AOE 10 | . 10 Terrain Rammed . | . . Walls Destroyed . | . . Machines Disabled . | . . Actions | -11 -10 --------- Run | Scr Mat Total 848 | 35 813 Wait 192 | 1 191 Move 553 | 29 524 Hop . | . . Pick Up 6 | . 6 Fast Attach 18 | 5 13 Attach 3 | . 3 Detach 6 | . 6 Swap 3 | . 3 Drop 4 | . 4 Fire 60 | . 60 Melee 2 | . 2 Ram 1 | . 1 Kick . | . . Crush . | . . Escape Stasis . | . . Rewire . | . . Trap . | . . Miscellaneous . | . . Route ------- -11/Scrapyard -10/Materials (discovered 3 exits: [*Mat] / *Min x2) History --------- Turn | Location | Event 13 | -11/Scrapyard | Discovered new exit (range 16) 38 | -11/Scrapyard | Entered Materials 131 | -10/Materials | Discovered new exit (range 16) 310 | -10/Materials | Build established: Mutant 537 | -10/Materials | Core integrity fell below 50% 575 | -10/Materials | Lost 5 parts (1p2n2w) 684 | -10/Materials | Discovered new exit (range 11) 726 | -10/Materials | Identified exit to Mines 904 | -10/Materials | Repaired Hover Unit 1035 | -10/Materials | Core integrity fell below 20% 1043 | -10/Materials | Destroyed by G-34 Mercenary with Small Laser Last Messages --------------- 00982_ U-05 Engineer builds a Door. 00983_ R-06 Scavenger collects Imp. Heat Sink. 00984_ Acquired 4 matter. 00984_ K-01 Serf collects debris. 00985_ Acquired 6 matter. 00988_ K-01 Serf collects debris. 01007_ Triggered Alarm Trap. 01007_ An alarm sounds. 01007_ ALERT: Alarm triggered, dispatching investigation squad. 01017_ Discarded Targeting Computer. 01018_ U-05 Engineer lays Concrete. 01020_ Dropped Heat Sink. 01021_ Acquired Visual Processing Unit. 01023_ Discarded Visual Processing Unit. 01024_ Acquired Imp. Targeting Computer. 01028_ Lgt. Cannon destroyed. 01028_ G-34 Mercenary destroyed. 01029_ System corrupted: Component data lost. 01038_ G-34 Mercenary knocked back. 01043_ R-06 Scavenger collects Heat Sink. Map ----- +----------------------------------------------------+ | ??????????????????????????????? | | ??????????????????????????????? | | ??????????????????????????????? | | ??????????????????????????????? | | ??##+##???????????????????????? | | ???????????????????????? | | ???????????????????????? | | ??????????????? ???????? | | # #?????????????? ###????? | | # #?????????????? #????? | | # #?????????????? #????? | | # #?????????????? #????? | | # #??????????????# ####?? | | #??????????????# !!##? | | #??????????????# !#? | | #??????????????# !#? | | #??????????????# !#? | | """ #??????????????# !#? | | """ ################ !!#?? | | """ #????? | | ! #????? | | % #????? | | #+#################### #????? | | #?????????????# #####? | | "" #?????????????# r!!#? | | R """ #?????????????#u @ #? | | "" """ #?????????????# % !#? | | """ #?????????????# !!#? | | #?????????????# g[[#? | | #?????????????# =g [[#? | | #?????????????#[g!#####? | | ########?????????????+ % #????? | | ?????????????????????#% #????? | | ?????????????????????# #????? | | #######??????????????#a #????? | | #??????????????# #????? | | #??????????????# #????? | | #??????????????# ?????? | | * #??????????????# ?????? | | * #??????????????# ?????? | | #???????????????? ??????? | | #???????????????????????? | | #???????????????????????? | | #???????????????????????? | | #???????????????????????? | | #???????????????????????? | | #######???????????????????????? | | ??????????????????????????????? | | ??????????????????????????????? | | ??????????????????????????????? | +----------------------------------------------------+ Best States ------------- Heat Dissipation 35 Energy Generation 10 Energy Capacity 250 Matter Stores 300 Matter Capacity 300 Sight Range 16 Robot Scan Range 14 Terrain Scan Density 10 Evasion (%) 40 Targeting Accuracy 12 Item Schematics ----------------- None Robot Schematics ------------------ None Fabricated ------------ Nothing Alien Tech Used ----------------- None Achievements -------------- None Challenges ------------ None Game ------ Seed BiocellEnhancedStorm Manual? 0 Play Time 00:13:59 Cumulative 38.8 hours Start 2022.03.27 @ 08:41:33 End 2022.03.27 @ 08:53:29 Sessions 1 Manual Loads 0 Difficulty Rogue Special Mode None Game No. 51 Rogue 51 Adventurer 0 Explorer 0 Win Type - Total 0 Types 0/0/0/0/0/0/0/0/0 Lore% 23 Gallery% 34 Achievement% 33 Wizard Run 0 Options --------- ASCII 0 Keyboard 1 Movement Numpad Keybinds 0 Fullscreen 1 Font 24/Smallcaps Map View 76x50 Tactical HUD 1 Map Filters NONE Filters NONE Steam 1 RUN: 5d6137b9-f346-444e-9d6c-480732c09398